[Event "*** Titled Tuesday Blitz"]
[Site "Chess.com"]
[Date "2020.11.24"]
[Round "6"]
[White "GigaQuparadze"]
[Black "suyu28"]
[Result "1-0"]
[WhiteElo "2848"]
[BlackElo "2624"]
[TimeControl "180+1"]
[EndTime "11:22:22 PST"]
[Termination "GigaQuparadze won on time"]

1. e4 {[%clk 0:03:00.9]} 1... c6 {[%clk 0:02:59.9]} 2. d4 {[%clk 0:03:00.4]}
2... d5 {[%clk 0:03:00.8]} 3. Nc3 {[%clk 0:03:00.9]} 3... dxe4 {[%clk
0:03:00.8]} 4. Nxe4 {[%clk 0:03:01.7]} 4... Nf6 {[%clk 0:02:57.3]} 5. Nxf6+
{[%clk 0:03:01.4]} 5... exf6 {[%clk 0:02:58.2]} 6. c3 {[%clk 0:03:02]} 6... Bd6
{[%clk 0:02:58.7]} 7. Bd3 {[%clk 0:03:02.4]} 7... O-O {[%clk 0:02:59.2]} 8. Qc2
{[%clk 0:03:03.3]} 8... Re8+ {[%clk 0:02:59.8]} 9. Ne2 {[%clk 0:03:03.7]} 9...
h5 {[%clk 0:03:00.5]} 10. O-O {[%clk 0:03:03.9]} 10... Nd7 {[%clk 0:03:01.1]}
11. Ng3 {[%clk 0:03:03.7]} 11... Bxg3 {[%clk 0:02:53.4]} 12. hxg3 {[%clk
0:02:59.9]} 12... Nf8 {[%clk 0:02:52]} 13. Be3 {[%clk 0:02:54.3]} 13... Be6
{[%clk 0:02:48.7]} 14. c4 {[%clk 0:02:54.1]} 14... a6 {[%clk 0:02:40.3]} 15.
Rad1 {[%clk 0:02:52.5]} 15... b5 {[%clk 0:02:37.5]} 16. b3 {[%clk 0:02:49]}
16... bxc4 {[%clk 0:02:35]} 17. bxc4 {[%clk 0:02:48.8]} 17... Qa5 {[%clk
0:02:26]} 18. Bd2 {[%clk 0:02:42.6]} 18... Qa3 {[%clk 0:02:11.4]} 19. Bc1 {[%clk
0:02:40.1]} 19... Qa5 {[%clk 0:02:10.3]} 20. Be4 {[%clk 0:02:24.9]} 20... Bxc4
{[%clk 0:01:49.3]} 21. Qxc4 {[%clk 0:02:25.8]} 21... Rxe4 {[%clk 0:01:48.8]} 22.
Qxc6 {[%clk 0:02:26.3]} 22... Ree8 {[%clk 0:01:42.2]} 23. Qc2 {[%clk 0:02:10.7]}
23... Ng6 {[%clk 0:01:37.5]} 24. d5 {[%clk 0:02:07.8]} 24... Rad8 {[%clk
0:01:26.4]} 25. d6 {[%clk 0:02:05.1]} 25... h4 {[%clk 0:01:10.9]} 26. gxh4
{[%clk 0:01:58.9]} 26... Nxh4 {[%clk 0:01:08.7]} 27. Qc4 {[%clk 0:01:57.3]}
27... Qh5 {[%clk 0:00:44.5]} 28. d7 {[%clk 0:01:45.2]} 28... Re5 {[%clk
0:00:36.4]} 29. Rd4 {[%clk 0:01:38.8]} 29... Nf5 {[%clk 0:00:17.7]} 30. Rd3
{[%clk 0:01:28]} 30... Qe2 {[%clk 0:00:12]} 31. Bb2 {[%clk 0:01:03.1]} 31...
Qxb2 {[%clk 0:00:10.7]} 32. Qc7 {[%clk 0:00:56.4]} 32... Qb8 {[%clk 0:00:07.9]}
33. Qxb8 {[%clk 0:00:56]} 33... Rxb8 {[%clk 0:00:08.8]} 34. d8=Q+ {[%clk
0:00:52.7]} 34... Rxd8 {[%clk 0:00:09.2]} 35. Rxd8+ {[%clk 0:00:53.2]} 35... Kh7
{[%clk 0:00:10.1]} 36. Rfd1 {[%clk 0:00:52.8]} 36... Ra5 {[%clk 0:00:09.6]} 37.
R1d5 {[%clk 0:00:51.1]} 37... Rxd5 {[%clk 0:00:04.1]} 38. Rxd5 {[%clk 0:00:52]}
38... Kg6 {[%clk 0:00:02.3]} 39. Ra5 {[%clk 0:00:51.5]} 39... Nd4 {[%clk
0:00:02.9]} 40. Rxa6 {[%clk 0:00:51.8]} 40... Kf5 {[%clk 0:00:03.5]} 41. a4
{[%clk 0:00:51.6]} 41... g5 {[%clk 0:00:03.9]} 42. a5 {[%clk 0:00:51.5]} 42...
Ke5 {[%clk 0:00:04.4]} 43. Rb6 {[%clk 0:00:51.7]} 43... Ne2+ {[%clk 0:00:03.6]}
44. Kf1 {[%clk 0:00:50.9]} 1-0

[Event "*** Titled Tuesday Blitz"]
[Site "Chess.com"]
[Date "2020.11.24"]
[Round "6"]
[White "Matols"]
[Black "Fusikk"]
[Result "0-1"]
[WhiteElo "2235"]
[BlackElo "2496"]
[TimeControl "180+1"]
[EndTime "11:22:22 PST"]
[Termination "Fusikk won by resignation"]

1. d4 {[%clk 0:03:00.9]} 1... Nf6 {[%clk 0:02:58.5]} 2. c4 {[%clk 0:03:00.7]}
2... e6 {[%clk 0:02:55.6]} 3. g3 {[%clk 0:03:00.2]} 3... Bb4+ {[%clk 0:02:54.8]}
4. Bd2 {[%clk 0:02:59.5]} 4... a5 {[%clk 0:02:54.1]} 5. Bg2 {[%clk 0:02:58.8]}
5... Qe7 {[%clk 0:02:52.7]} 6. e4 {[%clk 0:02:58.1]} 6... d6 {[%clk 0:02:49]} 7.
Ne2 {[%clk 0:02:56.7]} 7... e5 {[%clk 0:02:45.8]} 8. d5 {[%clk 0:02:49]} 8...
O-O {[%clk 0:02:43.5]} 9. O-O {[%clk 0:02:48.3]} 9... Bxd2 {[%clk 0:02:38.2]}
10. Qxd2 {[%clk 0:02:41.4]} 10... Nbd7 {[%clk 0:02:37.8]} 11. Nbc3 {[%clk
0:02:40.2]} 11... Nc5 {[%clk 0:02:36.4]} 12. b3 {[%clk 0:02:35.6]} 12... Bd7
{[%clk 0:02:35.3]} 13. Rae1 {[%clk 0:02:30.8]} 13... g6 {[%clk 0:02:29.7]} 14.
Nc1 {[%clk 0:02:29]} 14... Nh5 {[%clk 0:02:26.8]} 15. Nd3 {[%clk 0:02:23.9]}
15... Nxd3 {[%clk 0:02:24]} 16. Qxd3 {[%clk 0:02:23.8]} 16... b6 {[%clk
0:02:06.4]} 17. f4 {[%clk 0:02:20.6]} 17... exf4 {[%clk 0:02:03.5]} 18. gxf4
{[%clk 0:02:19.2]} 18... Qh4 {[%clk 0:01:59.7]} 19. f5 {[%clk 0:02:03.4]} 19...
Rae8 {[%clk 0:01:50.5]} 20. Qf3 {[%clk 0:01:58.8]} 20... f6 {[%clk 0:01:36.8]}
21. Ne2 {[%clk 0:01:43.3]} 21... gxf5 {[%clk 0:01:17.9]} 22. exf5 {[%clk
0:01:36.2]} 22... Re5 {[%clk 0:01:17.5]} 23. Ng3 {[%clk 0:01:26.3]} 23... Nxg3
{[%clk 0:01:15.4]} 24. hxg3 {[%clk 0:01:25.8]} 24... Qd4+ {[%clk 0:01:14.5]} 25.
Kh2 {[%clk 0:01:23.5]} 25... Bxf5 {[%clk 0:00:55.5]} 26. Rxe5 {[%clk 0:01:18.7]}
26... fxe5 {[%clk 0:00:54]} 27. Bh3 {[%clk 0:01:15]} 27... Qd2+ {[%clk
0:00:22.8]} 28. Rf2 {[%clk 0:01:14.6]} 28... Qh6 {[%clk 0:00:17.4]} 29. g4
{[%clk 0:01:07.3]} 29... Bb1 {[%clk 0:00:08.4]} 30. Qg2 {[%clk 0:00:35.9]} 30...
Rxf2 {[%clk 0:00:07.3]} 31. Qxf2 {[%clk 0:00:36]} 31... Qf4+ {[%clk 0:00:08.2]}
32. Qxf4 {[%clk 0:00:33.5]} 32... exf4 {[%clk 0:00:09.1]} 33. g5 {[%clk
0:00:26.4]} 33... Bxa2 {[%clk 0:00:09.6]} 34. Be6+ {[%clk 0:00:26.3]} 34... Kg7
{[%clk 0:00:08.6]} 35. Kg2 {[%clk 0:00:26.2]} 35... Bxb3 {[%clk 0:00:09.1]} 36.
Kf3 {[%clk 0:00:26.1]} 36... Bxc4 {[%clk 0:00:09.7]} 37. Kxf4 {[%clk 0:00:26.5]}
37... a4 {[%clk 0:00:10.2]} 38. Ke4 {[%clk 0:00:25.7]} 38... a3 {[%clk
0:00:10.8]} 39. Kd4 {[%clk 0:00:24.8]} 39... a2 {[%clk 0:00:11.3]} 0-1

[Event "*** Titled Tuesday Blitz"]
[Site "Chess.com"]
[Date "2020.11.24"]
[Round "6"]
[White "GoltsevDmitry2000"]
[Black "RTFrancisco"]
[Result "0-1"]
[WhiteElo "2647"]
[BlackElo "2532"]
[TimeControl "180+1"]
[EndTime "11:22:28 PST"]
[Termination "RTFrancisco won by checkmate"]

1. e4 {[%clk 0:02:58.7]} 1... c5 {[%clk 0:02:58.3]} 2. Nf3 {[%clk 0:02:49.7]}
2... Nc6 {[%clk 0:02:58]} 3. Bc4 {[%clk 0:02:45.3]} 3... g6 {[%clk 0:02:53.2]}
4. c3 {[%clk 0:02:44.7]} 4... Bg7 {[%clk 0:02:46.8]} 5. O-O {[%clk 0:02:31.6]}
5... e6 {[%clk 0:02:32.7]} 6. d4 {[%clk 0:02:31.2]} 6... cxd4 {[%clk 0:02:31.2]}
7. cxd4 {[%clk 0:02:32]} 7... d5 {[%clk 0:02:30.8]} 8. exd5 {[%clk 0:02:32.2]}
8... exd5 {[%clk 0:02:31.2]} 9. Bb3 {[%clk 0:02:32.6]} 9... Nge7 {[%clk
0:02:28]} 10. Nc3 {[%clk 0:02:32.7]} 10... O-O {[%clk 0:02:27.4]} 11. Bg5 {[%clk
0:02:32.4]} 11... h6 {[%clk 0:02:26.6]} 12. Be3 {[%clk 0:02:27.7]} 12... Be6
{[%clk 0:02:23.5]} 13. Qd2 {[%clk 0:02:26.7]} 13... Kh7 {[%clk 0:02:19.2]} 14.
Rfe1 {[%clk 0:02:23.5]} 14... Na5 {[%clk 0:02:13]} 15. Bc2 {[%clk 0:02:08.3]}
15... Nc4 {[%clk 0:02:09.1]} 16. Qc1 {[%clk 0:02:08]} 16... Rc8 {[%clk
0:02:05.1]} 17. Bf4 {[%clk 0:02:04.1]} 17... Bf5 {[%clk 0:01:40.9]} 18. Bb3
{[%clk 0:01:52.2]} 18... Na5 {[%clk 0:01:21.8]} 19. Ba4 {[%clk 0:01:41.5]} 19...
a6 {[%clk 0:01:12.1]} 20. Qe3 {[%clk 0:01:16.2]} 20... Nec6 {[%clk 0:01:11.4]}
21. h3 {[%clk 0:01:01.3]} 21... b5 {[%clk 0:01:05.5]} 22. Bb3 {[%clk 0:00:47.3]}
22... Nxb3 {[%clk 0:01:00.7]} 23. axb3 {[%clk 0:00:48.2]} 23... Nb4 {[%clk
0:01:01.1]} 24. Qe7 {[%clk 0:00:37.9]} 24... Nc2 {[%clk 0:00:53.3]} 25. Rxa6
{[%clk 0:00:29.7]} 25... Nxe1 {[%clk 0:00:52]} 26. Qxe1 {[%clk 0:00:30.6]} 26...
Re8 {[%clk 0:00:45.9]} 27. Qd2 {[%clk 0:00:25.4]} 27... b4 {[%clk 0:00:44.5]}
28. Nb5 {[%clk 0:00:12.5]} 28... Rc2 {[%clk 0:00:44.6]} 29. Qxb4 {[%clk
0:00:11.6]} 29... Ree2 {[%clk 0:00:41.2]} 30. Be3 {[%clk 0:00:08.5]} 30... Be4
{[%clk 0:00:31.2]} 31. Ne5 {[%clk 0:00:08.5]} 31... Rxe3 {[%clk 0:00:25.2]} 32.
fxe3 {[%clk 0:00:07.3]} 32... Qg5 {[%clk 0:00:25.6]} 33. Ng4 {[%clk 0:00:04.3]}
33... Rxg2+ {[%clk 0:00:20.6]} 34. Kf1 {[%clk 0:00:04.6]} 34... Qf5+ {[%clk
0:00:20.3]} 35. Ke1 {[%clk 0:00:04.6]} 35... Qf3 {[%clk 0:00:19.2]} 36. Qd2
{[%clk 0:00:02.4]} 36... Rg1# {[%clk 0:00:18.8]} 0-1

[Event "*** Titled Tuesday Blitz"]
[Site "Chess.com"]
[Date "2020.11.24"]
[Round "6"]
[White "pooh2012"]
[Black "GurevichMikhail"]
[Result "0-1"]
[WhiteElo "2478"]
[BlackElo "2616"]
[TimeControl "180+1"]
[EndTime "11:22:35 PST"]
[Termination "GurevichMikhail won by resignation"]

1. d4 {[%clk 0:03:00.9]} 1... d6 {[%clk 0:02:57]} 2. Nc3 {[%clk 0:02:53]} 2...
g6 {[%clk 0:02:54.1]} 3. h4 {[%clk 0:02:52.1]} 3... Nf6 {[%clk 0:02:53.4]} 4.
Bg5 {[%clk 0:02:51.1]} 4... Nbd7 {[%clk 0:02:48.4]} 5. e4 {[%clk 0:02:40.2]}
5... h6 {[%clk 0:02:45.6]} 6. Be3 {[%clk 0:02:38.8]} 6... c6 {[%clk 0:02:43.4]}
7. f3 {[%clk 0:02:33.8]} 7... b5 {[%clk 0:02:41.1]} 8. a3 {[%clk 0:02:32.4]}
8... Bb7 {[%clk 0:02:40.3]} 9. g4 {[%clk 0:02:25.7]} 9... Bg7 {[%clk 0:02:32.6]}
10. Bg2 {[%clk 0:02:24.8]} 10... Nb6 {[%clk 0:02:31.2]} 11. b3 {[%clk
0:02:20.3]} 11... h5 {[%clk 0:02:27.5]} 12. g5 {[%clk 0:02:19.6]} 12... Nfd7
{[%clk 0:02:26.7]} 13. Nge2 {[%clk 0:02:19.2]} 13... Qc7 {[%clk 0:02:19.3]} 14.
f4 {[%clk 0:02:04.9]} 14... a5 {[%clk 0:01:39.9]} 15. Qd2 {[%clk 0:01:40.9]}
15... b4 {[%clk 0:01:35]} 16. axb4 {[%clk 0:01:39.2]} 16... axb4 {[%clk
0:01:34.5]} 17. Rxa8+ {[%clk 0:01:39.4]} 17... Bxa8 {[%clk 0:01:33.7]} 18. Nd1
{[%clk 0:01:33.2]} 18... c5 {[%clk 0:01:33]} 19. d5 {[%clk 0:01:31.7]} 19... O-O
{[%clk 0:01:23.9]} 20. O-O {[%clk 0:01:24.1]} 20... e6 {[%clk 0:01:16.1]} 21.
dxe6 {[%clk 0:01:20.3]} 21... fxe6 {[%clk 0:01:15.5]} 22. c4 {[%clk 0:00:56.7]}
22... Nb8 {[%clk 0:00:22.7]} 23. Nf2 {[%clk 0:00:48.9]} 23... Nc6 {[%clk
0:00:22.1]} 24. Bh3 {[%clk 0:00:48.3]} 24... Qe7 {[%clk 0:00:21.2]} 25. Nd3
{[%clk 0:00:43.2]} 25... Nd7 {[%clk 0:00:18.8]} 26. f5 {[%clk 0:00:35.5]} 26...
exf5 {[%clk 0:00:17.9]} 27. exf5 {[%clk 0:00:35.9]} 27... Re8 {[%clk 0:00:18]}
28. Bf2 {[%clk 0:00:10.6]} 28... Qxe2 {[%clk 0:00:15.9]} 29. Qxe2 {[%clk
0:00:09.9]} 29... Rxe2 {[%clk 0:00:14.9]} 30. f6 {[%clk 0:00:10]} 30... Nxf6
{[%clk 0:00:15]} 31. gxf6 {[%clk 0:00:09.1]} 31... Bxf6 {[%clk 0:00:15]} 32. Nf4
{[%clk 0:00:09.2]} 32... Rb2 {[%clk 0:00:09.8]} 33. Nd5 {[%clk 0:00:03.2]} 33...
Bd4 {[%clk 0:00:08.7]} 34. Bxd4 {[%clk 0:00:02.4]} 34... Nxd4 {[%clk 0:00:08.5]}
35. Ne7+ {[%clk 0:00:01.3]} 35... Kg7 {[%clk 0:00:08.7]} 36. Nd5 {[%clk
0:00:01.2]} 36... Bxd5 {[%clk 0:00:07.8]} 37. cxd5 {[%clk 0:00:01.1]} 37... Ne2+
{[%clk 0:00:08]} 38. Kh1 {[%clk 0:00:01.2]} 38... Ng3+ {[%clk 0:00:07.7]} 0-1

[Event "*** Titled Tuesday Blitz"]
[Site "Chess.com"]
[Date "2020.11.24"]
[Round "6"]
[White "FLamps8"]
[Black "Astaneh"]
[Result "0-1"]
[WhiteElo "2477"]
[BlackElo "2615"]
[TimeControl "180+1"]
[EndTime "11:22:35 PST"]
[Termination "Astaneh won by checkmate"]

1. d4 {[%clk 0:03:00.9]} 1... Nf6 {[%clk 0:02:51.9]} 2. c4 {[%clk 0:03:00.8]}
2... e6 {[%clk 0:02:51.9]} 3. Nf3 {[%clk 0:03:00.2]} 3... Bb4+ {[%clk
0:02:51.9]} 4. Nbd2 {[%clk 0:02:52.6]} 4... O-O {[%clk 0:02:50.4]} 5. e3 {[%clk
0:02:50.5]} 5... c5 {[%clk 0:02:48.4]} 6. a3 {[%clk 0:02:48.2]} 6... Bxd2+
{[%clk 0:02:45.1]} 7. Bxd2 {[%clk 0:02:49.1]} 7... Ne4 {[%clk 0:02:44.6]} 8. Bd3
{[%clk 0:02:48]} 8... d5 {[%clk 0:02:41.8]} 9. cxd5 {[%clk 0:02:40.9]} 9... Nxd2
{[%clk 0:02:39.3]} 10. Qxd2 {[%clk 0:02:38.3]} 10... Qxd5 {[%clk 0:02:35.4]} 11.
Qc2 {[%clk 0:02:35.1]} 11... cxd4 {[%clk 0:02:23.4]} 12. Bxh7+ {[%clk
0:02:34.4]} 12... Kh8 {[%clk 0:02:22.5]} 13. Be4 {[%clk 0:02:35.3]} 13... Qd6
{[%clk 0:02:06.8]} 14. Nxd4 {[%clk 0:02:33]} 14... f5 {[%clk 0:02:07.3]} 15. Bf3
{[%clk 0:02:03.9]} 15... Nd7 {[%clk 0:02:06.2]} 16. O-O {[%clk 0:01:44.4]} 16...
Ne5 {[%clk 0:01:48.8]} 17. Rfd1 {[%clk 0:01:38.2]} 17... Qe7 {[%clk 0:01:32.2]}
18. Rac1 {[%clk 0:01:31.5]} 18... Qf6 {[%clk 0:01:29.3]} 19. Qc7 {[%clk
0:01:13.8]} 19... Bd7 {[%clk 0:01:28.6]} 20. Bxb7 {[%clk 0:01:12.7]} 20... Rae8
{[%clk 0:01:26.1]} 21. Nf3 {[%clk 0:01:09.6]} 21... Nxf3+ {[%clk 0:01:16.7]} 22.
Bxf3 {[%clk 0:01:10.5]} 22... Ba4 {[%clk 0:01:16.1]} 23. Rd4 {[%clk 0:01:08.4]}
23... Bb5 {[%clk 0:01:04.8]} 24. a4 {[%clk 0:00:58.8]} 24... Ba6 {[%clk
0:01:00.4]} 25. Qxa7 {[%clk 0:00:57.5]} 25... e5 {[%clk 0:00:59]} 26. Rb4 {[%clk
0:00:28.4]} 26... e4 {[%clk 0:00:50.7]} 27. Rb6 {[%clk 0:00:28.7]} 27... Qg5
{[%clk 0:00:50.9]} 28. Qxa6 {[%clk 0:00:26.5]} 28... exf3 {[%clk 0:00:50.7]} 29.
Rg6 {[%clk 0:00:26.3]} 29... Qh5 {[%clk 0:00:46.4]} 30. Rg3 {[%clk 0:00:22.8]}
30... fxg2 {[%clk 0:00:45.4]} 31. Kxg2 {[%clk 0:00:23.3]} 31... Re4 {[%clk
0:00:43.9]} 32. Rc4 {[%clk 0:00:16.4]} 32... Rf6 {[%clk 0:00:28.6]} 33. Qa8+
{[%clk 0:00:13.5]} 33... Re8 {[%clk 0:00:29]} 34. Qf3 {[%clk 0:00:13.2]} 34...
Qf7 {[%clk 0:00:25.4]} 35. Rh3+ {[%clk 0:00:10.1]} 35... Kg8 {[%clk 0:00:25.8]}
36. Qh5 {[%clk 0:00:10.2]} 36... Rg6+ {[%clk 0:00:22.5]} 37. Kh1 {[%clk
0:00:06]} 37... Qd5+ {[%clk 0:00:15.9]} 38. Rf3 {[%clk 0:00:06.2]} 38... Qd1#
{[%clk 0:00:11.6]} 0-1

[Event "*** Titled Tuesday Blitz"]
[Site "Chess.com"]
[Date "2020.11.24"]
[Round "6"]
[White "PaulfromSPb"]
[Black "kuban1991"]
[Result "0-1"]
[WhiteElo "2670"]
[BlackElo "2895"]
[TimeControl "180+1"]
[EndTime "11:22:37 PST"]
[Termination "kuban1991 won by resignation"]

1. d4 {[%clk 0:03:00.8]} 1... g6 {[%clk 0:02:59.9]} 2. h4 {[%clk 0:02:59.2]}
2... Bg7 {[%clk 0:02:59.7]} 3. h5 {[%clk 0:02:59.1]} 3... d5 {[%clk 0:03:00.3]}
4. h6 {[%clk 0:02:58.6]} 4... Bf6 {[%clk 0:03:00.1]} 5. Nf3 {[%clk 0:02:57.8]}
5... c5 {[%clk 0:02:57.9]} 6. c3 {[%clk 0:02:57.2]} 6... Nc6 {[%clk 0:02:57.2]}
7. Bf4 {[%clk 0:02:52.4]} 7... Qb6 {[%clk 0:02:55.2]} 8. e3 {[%clk 0:02:45.7]}
8... Qxb2 {[%clk 0:02:50.6]} 9. Nbd2 {[%clk 0:02:45.4]} 9... Bf5 {[%clk
0:02:49.4]} 10. Be2 {[%clk 0:02:37.5]} 10... c4 {[%clk 0:02:42.1]} 11. O-O
{[%clk 0:02:13.4]} 11... Qxc3 {[%clk 0:02:21.3]} 12. Rc1 {[%clk 0:02:10.3]}
12... Qa5 {[%clk 0:02:21.3]} 13. e4 {[%clk 0:02:08]} 13... Bxe4 {[%clk
0:02:08.4]} 14. Nxe4 {[%clk 0:02:04]} 14... dxe4 {[%clk 0:02:09.3]} 15. Nd2
{[%clk 0:02:03.3]} 15... Nxd4 {[%clk 0:01:47.5]} 16. Nxc4 {[%clk 0:02:00.2]}
16... Qxa2 {[%clk 0:01:30.6]} 17. Bg4 {[%clk 0:01:55.9]} 17... Rd8 {[%clk
0:01:30.4]} 18. Qe1 {[%clk 0:01:52.6]} 18... g5 {[%clk 0:01:21.2]} 19. Bc7
{[%clk 0:01:49.1]} 19... Nxh6 {[%clk 0:01:16.4]} 20. Bxd8 {[%clk 0:01:41.3]}
20... Nxg4 {[%clk 0:01:15.3]} 21. Qxe4 {[%clk 0:01:40.7]} 21... Ne2+ {[%clk
0:00:56.9]} 22. Kh1 {[%clk 0:01:37.9]} 22... Nxc1 {[%clk 0:00:57.1]} 23. Qxg4
{[%clk 0:01:28.6]} 23... Qe2 {[%clk 0:00:50.3]} 24. Nd6+ {[%clk 0:01:04.7]}
24... exd6 {[%clk 0:00:38.2]} 25. Qxe2+ {[%clk 0:01:03]} 25... Nxe2 {[%clk
0:00:39.1]} 26. Bxf6 {[%clk 0:01:02.9]} 26... O-O {[%clk 0:00:39.7]} 27. Rd1
{[%clk 0:00:44.7]} 27... h6 {[%clk 0:00:34.8]} 28. g3 {[%clk 0:00:40.9]} 28...
Re8 {[%clk 0:00:31.2]} 29. Rxd6 {[%clk 0:00:40.4]} 29... Re6 {[%clk 0:00:29.1]}
30. Rd8+ {[%clk 0:00:33.1]} 30... Kh7 {[%clk 0:00:29.5]} 31. Bb2 {[%clk
0:00:32.1]} 31... Kg6 {[%clk 0:00:24.7]} 32. Kg2 {[%clk 0:00:31.4]} 32... g4
{[%clk 0:00:20.4]} 33. Rd2 {[%clk 0:00:29.9]} 33... h5 {[%clk 0:00:15]} 34. Kf1
{[%clk 0:00:29.7]} 34... h4 {[%clk 0:00:15.5]} 35. Rxe2 {[%clk 0:00:17.4]} 35...
Rxe2 {[%clk 0:00:16.4]} 36. Kxe2 {[%clk 0:00:17.5]} 36... h3 {[%clk 0:00:17.3]}
37. Kf1 {[%clk 0:00:18.3]} 37... Kf5 {[%clk 0:00:17.8]} 38. Kg1 {[%clk
0:00:17.4]} 38... a5 {[%clk 0:00:18]} 39. f3 {[%clk 0:00:17]} 39... gxf3 {[%clk
0:00:17.9]} 40. Bd4 {[%clk 0:00:15.4]} 40... Kg4 {[%clk 0:00:17.8]} 41. Kh2
{[%clk 0:00:14.9]} 41... b5 {[%clk 0:00:18.2]} 0-1

[Event "*** Titled Tuesday Blitz"]
[Site "Chess.com"]
[Date "2020.11.24"]
[Round "6"]
[White "platy3"]
[Black "Margency"]
[Result "0-1"]
[WhiteElo "2833"]
[BlackElo "2676"]
[TimeControl "180+1"]
[EndTime "11:22:37 PST"]
[Termination "Margency won on time"]

1. e4 {[%clk 0:03:00.9]} 1... c5 {[%clk 0:02:59.9]} 2. Nf3 {[%clk 0:03:01.3]}
2... d6 {[%clk 0:03:00.1]} 3. d4 {[%clk 0:03:01.9]} 3... cxd4 {[%clk 0:03:01]}
4. Qxd4 {[%clk 0:03:02.1]} 4... Nc6 {[%clk 0:03:00.8]} 5. Qe3 {[%clk 0:03:02.4]}
5... Nf6 {[%clk 0:02:58.7]} 6. h3 {[%clk 0:03:02.4]} 6... g6 {[%clk 0:02:58.9]}
7. Be2 {[%clk 0:03:02.7]} 7... Bg7 {[%clk 0:02:59.5]} 8. O-O {[%clk 0:03:03.3]}
8... O-O {[%clk 0:02:59.9]} 9. c4 {[%clk 0:03:02.9]} 9... Be6 {[%clk 0:02:57.6]}
10. Nc3 {[%clk 0:03:03]} 10... Rc8 {[%clk 0:02:57]} 11. Rb1 {[%clk 0:02:31.1]}
11... Nd7 {[%clk 0:02:42.1]} 12. Bd2 {[%clk 0:02:27]} 12... a6 {[%clk
0:02:41.1]} 13. b3 {[%clk 0:02:11.3]} 13... h6 {[%clk 0:02:28]} 14. Qf4 {[%clk
0:02:03.5]} 14... Nde5 {[%clk 0:02:23.2]} 15. Nxe5 {[%clk 0:01:52.1]} 15... dxe5
{[%clk 0:02:21.2]} 16. Qe3 {[%clk 0:01:51.9]} 16... Nd4 {[%clk 0:02:16.4]} 17.
Bd3 {[%clk 0:01:47.1]} 17... Qd6 {[%clk 0:02:09]} 18. Rfd1 {[%clk 0:01:46.2]}
18... Rfd8 {[%clk 0:02:06.2]} 19. Bf1 {[%clk 0:01:43.2]} 19... Bd7 {[%clk
0:01:53.7]} 20. Nd5 {[%clk 0:01:42.1]} 20... Re8 {[%clk 0:01:23.1]} 21. Bb4
{[%clk 0:01:38.6]} 21... Qe6 {[%clk 0:01:16.7]} 22. f4 {[%clk 0:01:38.9]} 22...
Nc2 {[%clk 0:01:13.5]} 23. Qb6 {[%clk 0:01:15.3]} 23... Nxb4 {[%clk 0:01:08.5]}
24. Qxb4 {[%clk 0:01:13.6]} 24... exf4 {[%clk 0:01:04.6]} 25. Qxb7 {[%clk
0:01:05.2]} 25... Bc6 {[%clk 0:00:58.7]} 26. Qa7 {[%clk 0:00:42.3]} 26... Qxe4
{[%clk 0:00:52.7]} 27. Qf2 {[%clk 0:00:36.5]} 27... Bxd5 {[%clk 0:00:48]} 28.
cxd5 {[%clk 0:00:35]} 28... Rc2 {[%clk 0:00:37.4]} 29. Bd3 {[%clk 0:00:15.5]}
29... Rxf2 {[%clk 0:00:33.3]} 30. Bxe4 {[%clk 0:00:15.5]} 30... Rxa2 {[%clk
0:00:33.7]} 31. Rbc1 {[%clk 0:00:15.6]} 31... Rb8 {[%clk 0:00:27.9]} 32. Rd3
{[%clk 0:00:15.2]} 32... Be5 {[%clk 0:00:26.8]} 33. Rc6 {[%clk 0:00:08.8]} 33...
Bd6 {[%clk 0:00:25.4]} 34. h4 {[%clk 0:00:02.5]} 34... h5 {[%clk 0:00:25]} 35.
Kf1 {[%clk 0:00:02.5]} 35... a5 {[%clk 0:00:25]} 36. Rf3 {[%clk 0:00:02.8]}
36... Rb4 {[%clk 0:00:24.4]} 37. Bc2 {[%clk 0:00:02.5]} 37... Rd4 {[%clk
0:00:21.9]} 38. Rc8+ {[%clk 0:00:02.6]} 38... Kg7 {[%clk 0:00:21.8]} 39. Rc4
{[%clk 0:00:02.1]} 39... Rd2 {[%clk 0:00:21.1]} 40. Bd3 {[%clk 0:00:01.6]} 40...
Ra1+ {[%clk 0:00:18.6]} 0-1

[Event "*** Titled Tuesday Blitz"]
[Site "Chess.com"]
[Date "2020.11.24"]
[Round "6"]
[White "LikeWater"]
[Black "Angel_Hranitel_37"]
[Result "1-0"]
[WhiteElo "2619"]
[BlackElo "2482"]
[TimeControl "180+1"]
[EndTime "11:22:37 PST"]
[Termination "LikeWater won on time"]

1. e4 {[%clk 0:03:00.9]} 1... c5 {[%clk 0:02:59.9]} 2. Nc3 {[%clk 0:02:59.3]}
2... e6 {[%clk 0:02:59.5]} 3. f4 {[%clk 0:02:53.4]} 3... Nc6 {[%clk 0:02:56.4]}
4. Nf3 {[%clk 0:02:51.3]} 4... d5 {[%clk 0:02:43]} 5. Bb5 {[%clk 0:02:51.4]}
5... d4 {[%clk 0:02:40.6]} 6. Bxc6+ {[%clk 0:02:49.6]} 6... bxc6 {[%clk
0:02:41.5]} 7. Na4 {[%clk 0:02:45.8]} 7... d3 {[%clk 0:02:22]} 8. O-O {[%clk
0:02:39.4]} 8... Ba6 {[%clk 0:02:11.9]} 9. Re1 {[%clk 0:02:33.5]} 9... c4 {[%clk
0:02:06.7]} 10. b3 {[%clk 0:02:32]} 10... Nf6 {[%clk 0:01:59.2]} 11. Bb2 {[%clk
0:02:23.5]} 11... Be7 {[%clk 0:01:56.5]} 12. Ne5 {[%clk 0:02:24]} 12... cxb3
{[%clk 0:01:37.5]} 13. axb3 {[%clk 0:02:24.9]} 13... dxc2 {[%clk 0:01:22.2]} 14.
Qxc2 {[%clk 0:02:25.8]} 14... O-O {[%clk 0:01:14]} 15. Nxc6 {[%clk 0:02:21.9]}
15... Qd7 {[%clk 0:01:09.2]} 16. Nxe7+ {[%clk 0:02:22.1]} 16... Qxe7 {[%clk
0:01:10.1]} 17. Ba3 {[%clk 0:02:22.7]} 17... Qd7 {[%clk 0:00:41.7]} 18. Bxf8
{[%clk 0:02:22]} 18... Rxf8 {[%clk 0:00:42.4]} 19. Nc5 {[%clk 0:02:22.2]} 19...
Qd4+ {[%clk 0:00:42.7]} 20. Kh1 {[%clk 0:02:22.9]} 20... Ng4 {[%clk 0:00:38]}
21. h3 {[%clk 0:02:19.5]} 21... Nf2+ {[%clk 0:00:25.1]} 22. Kh2 {[%clk
0:02:19.9]} 22... Bb5 {[%clk 0:00:22.2]} 23. Qc3 {[%clk 0:02:09.3]} 23... Qd6
{[%clk 0:00:22.3]} 24. Qe3 {[%clk 0:02:02.9]} 24... Nd3 {[%clk 0:00:10.2]} 25.
Nxd3 {[%clk 0:02:01.8]} 25... Bxd3 {[%clk 0:00:11.1]} 26. Rxa7 {[%clk
0:01:52.4]} 26... Bb5 {[%clk 0:00:10.5]} 27. Rc1 {[%clk 0:01:32.3]} 27... e5
{[%clk 0:00:06.6]} 28. fxe5 {[%clk 0:00:40.4]} 28... Qxe5+ {[%clk 0:00:06.6]}
29. Kh1 {[%clk 0:00:41.1]} 29... Qd6 {[%clk 0:00:03.9]} 30. e5 {[%clk
0:00:35.1]} 30... Qd5 {[%clk 0:00:03.1]} 31. Rc5 {[%clk 0:00:31]} 31... Qe6
{[%clk 0:00:02]} 32. Rxb5 {[%clk 0:00:30.7]} 32... Qf5 {[%clk 0:00:02.9]} 33.
Kh2 {[%clk 0:00:26.3]} 33... Rc8 {[%clk 0:00:02.7]} 34. Rbb7 {[%clk 0:00:21.5]}
34... h5 {[%clk 0:00:01.6]} 35. Rxf7 {[%clk 0:00:21.3]} 35... Qe6 {[%clk
0:00:01.1]} 36. Rxg7+ {[%clk 0:00:21]} 36... Kf8 {[%clk 0:00:02]} 37. Qf3+
{[%clk 0:00:16.3]} 37... Ke8 {[%clk 0:00:02.2]} 38. Qxh5+ {[%clk 0:00:16.3]}
38... Kd8 {[%clk 0:00:01.8]} 39. Qh8+ {[%clk 0:00:15.9]} 1-0